[Event "IIFL Wealth 4th Mumbai GM"]
[Site "Mumbai"]
[Date "2019.01.05"]
[Round "7"]
[White "Raghunandan, Kaumandur Srihari"]
[Black "Harshavardhan G B"]
[Result "0-1"]
[ECO "B67"]
[WhiteElo "2378"]
[BlackElo "2163"]
[Annotator "NA"]
[PlyCount "116"]
[EventDate "2018.12.30"]
[EventType "swiss"]
[EventCountry "IND"]
[SourceTitle "playchess.com"]
[Source "ChessBase"]
[SourceQuality "1"]
[TimeControl "40/5400+30:1800+30"]

1. e4 {[%emt 0:00:00]} c5 {[%emt 0:00:00]} 2. Nf3 {[%emt 0:00:00]} d6 {[%emt 0:00:00]} 3. d4 {[%emt 0:00:17]} cxd4 {[%emt 0:00:00]} 4. Nxd4 {[%emt 0:00:06]} Nf6 {[%emt 0:00:00]} 5. Nc3 {[%emt 0:00:07]} Nc6 {[%emt 0:00:01]} 6. Bg5 {[%emt 0:00:07]} e6 {[%emt 0:00:04]} 7. Qd2 {[%emt 0:00:06]} a6 {[%emt 0:00:04]} 8. O-O-O {[%emt 0:00:16]} Bd7 {[%emt 0:00:04]} 9. f4 {[%emt 0:01:22]} Qc7 {[%emt 0:00:16]} 10. Nf3 {[%emt 0:07:20]} O-O-O {[%emt 0:01:27]} 11. Bd3 {[%emt 0:02:44]} Be7 {[%emt 0:03:39]} 12. Rhe1 {[%emt 0:00:37]} h6 {[%emt 0:01:03]} 13. Bh4 {[%emt 0:00:07]} Nb4 {[%emt 0:15:57]} 14. Bf1 {[%emt 0:05:41]} Rhe8 {[%emt 0:21:42]} 15. a3 {[%emt 0:14:44]} Nc6 {[%emt 0:00:16]} 16. Bf2 {[%emt 0:24:07]} Na5 {[%emt 0:06:15]} 17. Kb1 {[%emt 0:03:09]} b5 {[%emt 0:03:03]} 18. a4 {[%emt 0:12:34]} Nc4 {[%emt 0:03:58]} 19. Bxc4 {[%emt 0:00:06]} Qxc4 {[%emt 0:03:48]} 20. Bb6 {[%emt 0:04:14]} b4 {[%emt 0:10:14]} 21. Na2 {[%emt 0:00:09]} Nxe4 {[%emt 0:01:00]} 22. Qe3 {[%emt 0:03:00]} f5 {[%emt 0:09:12]} 23. Rd4 {[%emt 0:01:07]} Qc6 {[%emt 0:01:18]} 24. Rxb4 {[%emt 0:02:25]} d5 {[%emt 0:03:33]} 25. Bxd8 {[%emt 0:01:26]} Rxd8 {[%emt 0:02:21]} 26. Rb3 {[%emt 0:12:36]} Bc5 {[%emt 0:04:09]} 27. Qe2 {[%emt 0:00:06]} Qxa4 {[%emt 0:00:59]} 28. Nc3 {[%emt 0:01:11]} Qa5 {[%emt 0:00:08]} 29. Nxe4 {[%emt 0:01:37]} dxe4 {[%emt 0:01:09]} 30. Rc3 {[%emt 0:02:29]} Kb7 {[%emt 0:01:27]} 31. Ne5 {[%emt 0:00:53]} Bb4 {[%emt 0:00:28]} 32. Rb3 {[%emt 0:00:39]} Ba4 {[%emt 0:00:47]} 33. Nc6 {[%emt 0:00:34]} Kxc6 {[%emt 0:01:07]} 34. Qc4+ {[%emt 0:00:08]} Bc5 {[%emt 0:01:35]} 35. Qxe6+ {[%emt 0:00:31]} Kc7 {[%emt 0:00:13]} 36. Rc3 {[%emt 0:00:25]} Bc6 {[%emt 0:02:37]} 37. Qe5+ {[%emt 0:00:52]} Kb6 {[%emt 0:00:28]} 38. Rb3+ {[%emt 0:00:26]} Ka7 {[%emt 0:01:27]} 39. Rc1 {[%emt 0:00:35]} Bb6 {[%emt 0:01:12]} 40. Qxg7+ {[%emt 0:00:00]} Bb7 {[%emt 0:00:00]} 41. Qxh6 {[%emt 0:03:34]} e3 {[%emt 0:03:06]} 42. Qe6 {[%emt 0:03:38]} Be4 {[%emt 0:01:39]} 43. Qe7+ {[%emt 0:00:43]} Ka8 {[%emt 0:02:00]} 44. Ra3 {[%emt 0:04:14]} Qb5 {[%emt 0:00:41]} 45. g4 {[%emt 0:00:07]} Rd7 {[%emt 0:15:17]} 46. Qe6 {[%emt 0:03:51]} Kb7 {[%emt 0:04:35]} 47. Rb3 {[%emt 0:00:39]} Qc6 {[%emt 0:00:09]} 48. gxf5 {[%emt 0:02:44]} e2 {[%emt 0:02:39]} 49. Rxb6+ {[%emt 0:09:35]} Kxb6 {[%emt 0:00:13]} 50. Qb3+ {[%emt 0:00:10]} Kc7 {[%emt 0:00:24]} 51. Qe3 {[%emt 0:00:21]} Bxc2+ {[%emt 0:02:49]} 52. Rxc2 {[%emt 0:00:08]} Rd1+ {[%emt 0:00:06]} 53. Ka2 {[%emt 0:00:03]} Qxc2 {[%emt 0:00:06]} 54. Qa7+ {[%emt 0:00:12]} Kd8 {[%emt 0:01:34]} 55. Qb6+ {[%emt 0:00:14]} Qc7 {[%emt 0:01:03]} 56. Qf6+ {[%emt 0:00:06]} Qe7 {[%emt 0:00:10]} 57. Qb6+ {[%emt 0:00:06]} Ke8 {[%emt 0:00:35]} 58. Qg6+ {[%emt 0:00:22]} Qf7+ {[%emt 0:00:04]} 0-1

[Event "IIFL Wealth 4th Mumbai GM"]
[Site "Mumbai"]
[Date "2019.01.05"]
[Round "7"]
[White "Kulkarni, Vikramaditya"]
[Black "Stupak, Kirill"]
[Result "0-1"]
[ECO "A30"]
[WhiteElo "2345"]
[BlackElo "2557"]
[Annotator "RC"]
[PlyCount "74"]
[EventDate "2018.12.30"]
[EventType "swiss"]
[EventCountry "IND"]
[SourceTitle "playchess.com"]
[Source "ChessBase"]
[SourceQuality "1"]
[TimeControl "40/5400+30:1800+30"]

1. c4 {[%emt 0:00:00]} c5 {[%emt 0:00:17]} 2. Nf3 {[%emt 0:00:01]} Nc6 {[%emt 0:00:13]} 3. Nc3 {[%emt 0:00:12]} g6 {[%emt 0:00:49]} 4. d4 {[%emt 0:06:18]} cxd4 {[%emt 0:00:57]} 5. Nxd4 {[%emt 0:00:03]} Bg7 {[%emt 0:00:04]} 6. Nc2 {[%emt 0:00:10]} d6 {[%emt 0:04:08]} 7. e4 Bxc3+ {[%emt 0:02:55]} 8. bxc3 {[%emt 0:00:26]} Qa5 {[%emt 0:00:19]} 9. Be2 {[%emt 0:06:27]} Nf6 {[%emt 0:02:51]} 10. f3 {[%emt 0:01:09]} Be6 {[%emt 0:03:06]} 11. O-O {[%emt 0:06:10]} Rc8 {[%emt 0:09:43]} 12. Bh6 {[%emt 0:08:51]} Qxc3 {[%emt 0:02:11]} 13. Rb1 {[%emt 0:01:25]} Bxc4 {[%emt 0:07:07]} 14. Bxc4 {[%emt 0:03:50]} Qxc4 {[%emt 0:00:02]} 15. Ne3 {[%emt 0:01:47]} Qc5 {[%emt 0:00:57]} 16. Kh1 {[%emt 0:00:32]} Nd7 {[%emt 0:01:59]} 17. Rxb7 {[%emt 0:01:02]} Nd8 {[%emt 0:26:38]} 18. Rb1 {[%emt 0:02:35]} f6 {[%emt 0:07:59]} 19. Rf2 {[%emt 0:14:26]} Qh5 {[%emt 0:06:36]} 20. Bf4 {[%emt 0:00:24]} Ne6 {[%emt 0:01:49]} 21. Nd5 {[%emt 0:05:49]} Nxf4 {[%emt 0:03:19]} 22. Nxf4 {[%emt 0:00:21]} Qc5 {[%emt 0:00:41]} 23. Re2 {[%emt 0:05:11]} Nb6 {[%emt 0:01:49]} 24. h3 {[%emt 0:01:22]} Kf7 {[%emt 0:01:08]} 25. a4 {[%emt 0:01:34]} Rc7 {[%emt 0:11:04]} 26. a5 {[%emt 0:17:38]} Qxa5 {[%emt 0:00:02]} 27. Rxb6 {[%emt 0:00:13]} axb6 {[%emt 0:03:50]} 28. Qb3+ {[%emt 0:00:11]} d5 {[%emt 0:00:18]} 29. Kh2 {[%emt 0:06:41]} Rc3 {[%emt 0:00:21]} 30. Qb1 {[%emt 0:00:26]} d4 {[%emt 0:00:45]} 31. Nd5 {[%emt 0:00:46]} Rhc8 {[%emt 0:00:45]} 32. Ra2 {[%emt 0:03:07]} Ra3 {[%emt 0:00:03]} 33. Rb2 {[%emt 0:00:45]} Rc5 {[%emt 0:00:03]} 34. Rxb6 {[%emt 0:02:29]} Rxd5 {[%emt 0:00:01]} 35. exd5 {[%emt 0:00:08]} Qxd5 {[%emt 0:00:11]} 36. Qc1 {[%emt 0:00:35]} Rc3 {[%emt 0:00:41]} 37. Qh6 {[%emt 0:00:19]} Qh5 {[%emt 0:01:45]} 0-1

[Event "IIFL Wealth 4th Mumbai GM"]
[Site "Mumbai"]
[Date "2019.01.05"]
[Round "7"]
[White "Ameir, Moheb"]
[Black "Subhayan Kundu"]
[Result "0-1"]
[ECO "C06"]
[WhiteElo "2327"]
[BlackElo "2185"]
[Annotator "NA"]
[PlyCount "88"]
[EventDate "2018.12.30"]
[EventType "swiss"]
[EventCountry "IND"]
[SourceTitle "playchess.com"]
[Source "ChessBase"]
[SourceQuality "1"]
[TimeControl "40/5400+30:1800+30"]

1. e4 {[%emt 0:00:00]} e6 {[%emt 0:00:00]} 2. d4 d5 {[%emt 0:00:00]} 3. Nd2 {[%emt 0:00:00]} Nf6 {[%emt 0:00:00]} 4. e5 {[%emt 0:00:06]} Nfd7 {[%emt 0:00:00]} 5. Bd3 {[%emt 0:00:19]} c5 {[%emt 0:00:00]} 6. c3 {[%emt 0:00:08]} Nc6 {[%emt 0:00:00]} 7. Ne2 {[%emt 0:00:09]} cxd4 {[%emt 0:00:02]} 8. cxd4 {[%emt 0:00:10]} f6 {[%emt 0:00:03]} 9. exf6 {[%emt 0:00:53]} Nxf6 {[%emt 0:00:05]} 10. O-O {[%emt 0:01:06]} Bd6 {[%emt 0:00:03]} 11. Nf3 {[%emt 0:00:39]} O-O {[%emt 0:00:04]} 12. Bf4 {[%emt 0:00:29]} Bxf4 {[%emt 0:00:08]} 13. Nxf4 {[%emt 0:00:02]} Ng4 {[%emt 0:00:10]} 14. Qd2 {[%emt 0:10:34]} Qf6 {[%emt 0:00:08]} 15. Ne2 {[%emt 0:01:21]} e5 {[%emt 0:00:05]} 16. dxe5 {[%emt 0:01:19]} Ngxe5 {[%emt 0:01:12]} 17. Nxe5 {[%emt 0:01:04]} Nxe5 {[%emt 0:00:09]} 18. Rac1 {[%emt 0:17:52]} Bg4 {[%emt 0:13:12]} 19. Nd4 {[%emt 0:10:10]} Qf4 {[%emt 0:10:30]} 20. Rc2 {[%emt 0:06:30]} Rac8 {[%emt 0:09:21]} 21. Qxf4 {[%emt 0:05:06]} Rxf4 {[%emt 0:00:17]} 22. Rxc8+ {[%emt 0:01:08]} Bxc8 {[%emt 0:00:01]} 23. Rd1 {[%emt 0:00:23]} Rxd4 {[%emt 0:00:44]} 24. Bxh7+ {[%emt 0:00:08]} Kxh7 {[%emt 0:00:04]} 25. Rxd4 {[%emt 0:00:08]} Be6 {[%emt 0:00:00]} 26. f4 {[%emt 0:01:06]} Nc6 {[%emt 0:00:22]} 27. Rd2 {[%emt 0:01:55]} d4 {[%emt 0:00:21]} 28. b3 {[%emt 0:11:23]} Kg6 {[%emt 0:00:18]} 29. Re2 {[%emt 0:02:11]} Bg4 {[%emt 0:02:42]} 30. Rd2 {[%emt 0:01:19]} Be6 {[%emt 0:07:32]} 31. Re2 {[%emt 0:00:06]} Bd5 {[%emt 0:03:03]} 32. Re8 {[%emt 0:00:24]} Kf5 {[%emt 0:00:54]} 33. g3 {[%emt 0:00:13]} Be4 {[%emt 0:03:47]} 34. Kf2 {[%emt 0:05:09]} Bb1 {[%emt 0:00:24]} 35. Rg8 {[%emt 0:07:14]} Kf6 {[%emt 0:01:48]} 36. Rf8+ {[%emt 0:01:34]} Ke6 {[%emt 0:00:56]} 37. a3 {[%emt 0:02:11]} d3 {[%emt 0:00:27]} 38. Re8+ {[%emt 0:07:21]} Kf5 {[%emt 0:02:48]} 39. Ke3 {[%emt 0:01:56]} Nd4 {[%emt 0:01:05]} 40. Kd2 {[%emt 0:00:00]} Nxb3+ {[%emt 0:00:00]} 41. Kc3 {[%emt 0:06:29]} d2 {[%emt 0:04:26]} 42. Rd8 {[%emt 0:04:55]} Ke4 {[%emt 0:00:08]} 43. Re8+ {[%emt 0:00:12]} Kf3 {[%emt 0:00:09]} 44. Rd8 {[%emt 0:00:03]} Ke3 {[%emt 0:00:11] Kd4+} 0-1

[Event "IIFL Wealth 4th Mumbai GM"]
[Site "Mumbai"]
[Date "2019.01.05"]
[Round "7"]
[White "Pranav, V."]
[Black "Mahindrakar Indrajeet"]
[Result "1-0"]
[ECO "D00"]
[WhiteElo "2318"]
[BlackElo "2106"]
[Annotator "NA"]
[PlyCount "91"]
[EventDate "2018.12.30"]
[EventType "swiss"]
[EventCountry "IND"]
[SourceTitle "playchess.com"]
[Source "ChessBase"]
[SourceQuality "1"]
[TimeControl "40/5400+30:1800+30"]

1. d4 {[%emt 0:00:00]} d5 {[%emt 0:00:31]} 2. Bf4 {[%emt 0:00:00]} c5 {[%emt 0:01:39]} 3. e3 {[%emt 0:00:11]} Nf6 {[%emt 0:02:46]} 4. Nc3 {[%emt 0:00:25]} g6 {[%emt 0:05:18]} 5. Nf3 {[%emt 0:01:37]} Bg7 {[%emt 0:00:53]} 6. Nb5 {[%emt 0:00:26]} Na6 {[%emt 0:01:03]} 7. c3 {[%emt 0:00:43]} O-O {[%emt 0:01:19]} 8. Be2 {[%emt 0:00:33]} Qb6 {[%emt 0:02:57]} 9. a4 {[%emt 0:02:14]} Bd7 {[%emt 0:03:08]} 10. O-O {[%emt 0:10:19]} c4 {[%emt 0:09:24]} 11. b3 {[%emt 0:01:45]} cxb3 {[%emt 0:02:17]} 12. Qxb3 {[%emt 0:01:18]} Rfc8 {[%emt 0:01:50]} 13. c4 {[%emt 0:03:07]} Be6 {[%emt 0:12:28]} 14. c5 {[%emt 0:09:08]} Qa5 {[%emt 0:01:35]} 15. Ng5 {[%emt 0:05:04]} Bf5 {[%emt 0:02:38]} 16. g4 {[%emt 0:00:38]} Bd7 {[%emt 0:05:31]} 17. Nxf7 {[%emt 0:01:16]} Kxf7 {[%emt 0:06:33]} 18. g5 {[%emt 0:00:19]} Nh5 {[%emt 0:17:39]} 19. Bxh5 {[%emt 0:02:07]} gxh5 {[%emt 0:00:41]} 20. Qxd5+ {[%emt 0:00:20]} Be6 {[%emt 0:02:55]} 21. Qe4 {[%emt 0:01:00]} Qd8 {[%emt 0:06:04]} 22. Qxh7 {[%emt 0:01:53]} Qd7 {[%emt 0:02:31]} 23. g6+ {[%emt 0:00:51]} Kf8 {[%emt 0:00:48]} 24. Bh6 {[%emt 0:00:13]} Ke8 {[%emt 0:05:42]} 25. Qxg7 {[%emt 0:06:03]} Qd5 {[%emt 0:00:12]} 26. Qf8+ {[%emt 0:00:27]} Kd7 {[%emt 0:00:18]} 27. Qf4 {[%emt 0:00:13]} Bh3 {[%emt 0:02:31]} 28. Qg3 {[%emt 0:00:30]} Bxf1 {[%emt 0:00:34]} 29. Rxf1 {[%emt 0:00:12]} Rc6 {[%emt 0:00:45]} 30. f4 {[%emt 0:03:56]} Qf5 {[%emt 0:00:21]} 31. Bg5 {[%emt 0:00:30]} Rxg6 {[%emt 0:00:34]} 32. Qf3 {[%emt 0:01:01]} Qg4+ {[%emt 0:00:51]} 33. Qxg4+ {[%emt 0:00:28]} hxg4 {[%emt 0:00:01]} 34. Na3 {[%emt 0:00:16]} Nb4 {[%emt 0:00:46]} 35. Rb1 {[%emt 0:00:44]} a5 {[%emt 0:01:28]} 36. Nc4 {[%emt 0:00:21]} Ke8 {[%emt 0:00:10]} 37. Nxa5 {[%emt 0:00:34]} Nc2 {[%emt 0:00:53]} 38. Nc4 {[%emt 0:00:25]} Rxa4 {[%emt 0:00:38]} 39. Ne5 {[%emt 0:00:01]} Rga6 {[%emt 0:00:41]} 40. Rxb7 {[%emt 0:00:00]} Kf8 {[%emt 0:00:00]} 41. Bxe7+ {[%emt 0:02:23]} Ke8 {[%emt 0:02:26]} 42. Bg5 {[%emt 0:00:55]} Ra8 {[%emt 0:02:23]} 43. Rh7 {[%emt 0:00:29]} Kf8 {[%emt 0:03:34]} 44. Bf6 {[%emt 0:00:11]} Ra1+ {[%emt 0:01:25]} 45. Kf2 {[%emt 0:00:11]} g3+ {[%emt 0:00:31]} 46. hxg3 {[%emt 0:00:13]} 1-0

[Event "IIFL Wealth 4th Mumbai GM"]
[Site "Mumbai"]
[Date "2019.01.05"]
[Round "7"]
[White "Elgabry, Mohsen"]
[Black "Soham Datar"]
[Result "1/2-1/2"]
[ECO "D78"]
[WhiteElo "2305"]
[BlackElo "2134"]
[Annotator "NA"]
[PlyCount "152"]
[EventDate "2018.12.30"]
[EventType "swiss"]
[EventCountry "IND"]
[SourceTitle "playchess.com"]
[Source "ChessBase"]
[SourceQuality "1"]
[TimeControl "40/5400+30:1800+30"]

1. Nf3 {[%emt 0:00:00]} d5 {[%emt 0:00:00]} 2. g3 {[%emt 0:00:00]} g6 {[%emt 0:00:00]} 3. Bg2 {[%emt 0:00:00]} Bg7 {[%emt 0:00:00]} 4. d4 {[%emt 0:00:01]} Nf6 {[%emt 0:00:02]} 5. c4 {[%emt 0:00:31]} c6 {[%emt 0:00:05]} 6. O-O {[%emt 0:00:28]} O-O {[%emt 0:00:05]} 7. Nc3 {[%emt 0:00:16]} dxc4 {[%emt 0:01:31]} 8. a4 {[%emt 0:00:16]} a5 {[%emt 0:00:25]} 9. e4 {[%emt 0:01:05]} Nfd7 {[%emt 0:12:26]} 10. Be3 {[%emt 0:01:07]} Na6 {[%emt 0:00:56]} 11. Qe2 {[%emt 0:00:36]} Nb4 {[%emt 0:00:07]} 12. Rfd1 {[%emt 0:00:50]} Nb6 {[%emt 0:01:27]} 13. h3 {[%emt 0:00:25]} Ra6 {[%emt 0:12:13]} 14. Ne5 {[%emt 0:00:26]} Be6 {[%emt 0:01:44]} 15. f4 {[%emt 0:01:28]} f6 {[%emt 0:07:44]} 16. Nf3 {[%emt 0:01:08]} Bf7 {[%emt 0:01:16]} 17. g4 {[%emt 0:00:54]} Qc7 {[%emt 0:03:43]} 18. Ne1 {[%emt 0:04:40]} Bh6 {[%emt 0:02:45]} 19. Qf2 {[%emt 0:00:32]} Rd8 {[%emt 0:07:45]} 20. Bf1 {[%emt 0:05:09]} f5 {[%emt 0:02:53]} 21. d5 {[%emt 0:02:48]} fxe4 {[%emt 0:00:42]} 22. dxc6 {[%emt 0:00:35]} bxc6 {[%emt 0:02:59]} 23. Rxd8+ {[%emt 0:00:53]} Qxd8 {[%emt 0:00:04]} 24. Rd1 {[%emt 0:00:00]} Nd3 {[%emt 0:06:23]} 25. Nxe4 {[%emt 0:00:03]} Nd5 {[%emt 0:01:35]} 26. Nxd3 {[%emt 0:00:36]} cxd3 {[%emt 0:00:42]} 27. Rxd3 {[%emt 0:05:20]} Ra8 {[%emt 0:00:05]} 28. Ng5 {[%emt 0:06:59]} Bxg5 {[%emt 0:02:56]} 29. fxg5 {[%emt 0:00:02]} Qc7 {[%emt 0:01:44]} 30. Bc5 {[%emt 0:02:35]} Nf4 {[%emt 0:02:54]} 31. Rf3 {[%emt 0:00:18]} e5 {[%emt 0:00:18]} 32. Ba3 {[%emt 0:02:05]} Bd5 {[%emt 0:02:28]} 33. Re3 {[%emt 0:01:18]} e4 {[%emt 0:06:48]} 34. Rg3 {[%emt 0:05:40]} Qe5 {[%emt 0:03:55]} 35. h4 {[%emt 0:01:15]} Re8 {[%emt 0:00:16]} 36. Re3 {[%emt 0:02:28]} Bf7 {[%emt 0:07:53]} 37. b3 {[%emt 0:02:29]} Nd5 {[%emt 0:00:23]} 38. Bb2 {[%emt 0:02:07]} Qe6 {[%emt 0:01:06]} 39. Be2 {[%emt 0:00:00]} Qd6 {[%emt 0:00:00]} 40. Bc4 {[%emt 0:00:00]} Nf4 {[%emt 0:00:00]} 41. Bf1 {[%emt 0:10:42]} Nd5 {[%emt 0:17:12]} 42. Bc4 {[%emt 0:05:17]} Qf4 {[%emt 0:08:57]} 43. Qxf4 {[%emt 0:05:00]} Nxf4 {[%emt 0:00:02]} 44. Bc3 {[%emt 0:00:13]} Bxc4 {[%emt 0:02:20]} 45. bxc4 {[%emt 0:00:02]} Nd3 {[%emt 0:00:14]} 46. Bxa5 {[%emt 0:02:55]} Nb2 {[%emt 0:00:10]} 47. Be1 {[%emt 0:01:41]} Nxa4 {[%emt 0:00:22]} 48. Ra3 {[%emt 0:01:17]} Nb2 {[%emt 0:01:34]} 49. Ra7 {[%emt 0:04:22]} Nxc4 {[%emt 0:00:09]} 50. Bc3 {[%emt 0:00:12]} Ne5 {[%emt 0:00:17]} 51. Kf1 {[%emt 0:01:12]} Nxg4 {[%emt 0:04:11]} 52. Rg7+ {[%emt 0:00:47]} Kf8 {[%emt 0:00:01]} 53. Rxh7 {[%emt 0:00:19]} Ne3+ {[%emt 0:00:14]} 54. Ke2 {[%emt 0:02:23]} Nf5 {[%emt 0:01:46]} 55. Rd7 {[%emt 0:12:25]} Re6 {[%emt 0:01:04]} 56. Rh7 {[%emt 0:02:22]} e3 {[%emt 0:00:21]} 57. Be1 {[%emt 0:01:03]} Nd4+ {[%emt 0:02:54]} 58. Kd3 {[%emt 0:00:02]} c5 {[%emt 0:00:43]} 59. Rc7 {[%emt 0:00:20]} Nf3 {[%emt 0:04:11]} 60. Ke2 {[%emt 0:00:01]} Nxe1 {[%emt 0:01:01]} 61. Kxe1 {[%emt 0:00:01]} Re5 {[%emt 0:00:21]} 62. Ke2 {[%emt 0:00:14]} Kg8 {[%emt 0:00:45]} 63. Rd7 {[%emt 0:02:39]} Re4 {[%emt 0:00:17]} 64. Rb7 {[%emt 0:01:14]} Rxh4 {[%emt 0:00:43]} 65. Rc7 {[%emt 0:01:28]} Rc4 {[%emt 0:01:34]} 66. Kxe3 {[%emt 0:00:02]} Kf8 {[%emt 0:00:14]} 67. Kd3 {[%emt 0:00:06]} Rd4+ {[%emt 0:00:04]} 68. Ke3 {[%emt 0:00:00]} Rd5 {[%emt 0:00:09]} 69. Kf4 {[%emt 0:00:23]} Rf5+ {[%emt 0:00:56]} 70. Kg4 {[%emt 0:00:02]} Rd5 {[%emt 0:00:24]} 71. Kf4 {[%emt 0:00:01]} Rf5+ {[%emt 0:00:55]} 72. Kg4 {[%emt 0:00:00]} Ke8 {[%emt 0:00:31]} 73. Rg7 {[%emt 0:00:18]} c4 {[%emt 0:00:27]} 74. Rc7 {[%emt 0:00:01]} Ra5 {[%emt 0:00:40]} 75. Rxc4 {[%emt 0:00:02]} Kf7 {[%emt 0:00:14]} 76. Rc7+ {[%emt 0:00:33]} Kg8 {[%emt 0:00:09]} 1/2-1/2

[Event "IIFL Wealth 4th Mumbai GM"]
[Site "Mumbai"]
[Date "2019.01.05"]
[Round "7"]
[White "Srijit Paul"]
[Black "Sundararajan, Kidambi"]
[Result "1/2-1/2"]
[ECO "C87"]
[WhiteElo "2298"]
[BlackElo "2458"]
[Annotator "ChessBase"]
[PlyCount "81"]
[EventDate "2018.12.30"]
[EventType "swiss"]
[EventCountry "IND"]
[SourceTitle "playchess.com"]
[Source "ChessBase"]
[SourceQuality "1"]
[TimeControl "40/5400+30:1800+30"]

1. e4 {[%emt 0:00:00]} e5 {[%emt 0:00:00]} 2. Nf3 {[%emt 0:00:00]} Nc6 {[%emt 0:00:00]} 3. Bb5 {[%emt 0:00:07]} a6 {[%emt 0:00:03]} 4. Ba4 {[%emt 0:00:05]} Nf6 {[%emt 0:00:25]} 5. O-O {[%emt 0:00:06]} Be7 {[%emt 0:00:31]} 6. Re1 {[%emt 0:00:05]} d6 {[%emt 0:00:28]} 7. c3 {[%emt 0:00:50]} Bg4 {[%emt 0:00:55]} 8. h3 {[%emt 0:04:18]} Bh5 {[%emt 0:00:59]} 9. d3 {[%emt 0:00:23]} Nd7 {[%emt 0:00:27]} 10. Nbd2 {[%emt 0:02:02]} Nc5 {[%emt 0:01:59]} 11. Bc2 {[%emt 0:02:16]} Ne6 {[%emt 0:00:20]} 12. Nf1 {[%emt 0:00:12]} Ng5 {[%emt 0:03:53]} 13. Bxg5 {[%emt 0:08:16]} Bxg5 {[%emt 0:00:11]} 14. Ng3 {[%emt 0:00:05]} Bxf3 {[%emt 0:00:13]} 15. Qxf3 {[%emt 0:00:05]} O-O {[%emt 0:02:04]} 16. Rad1 {[%emt 0:02:31]} g6 {[%emt 0:03:59]} 17. d4 {[%emt 0:01:34]} Qf6 {[%emt 0:04:41]} 18. Qd3 {[%emt 0:05:25]} Bh4 {[%emt 0:09:07]} 19. Ba4 {[%emt 0:01:23]} b5 {[%emt 0:04:05]} 20. Bb3 {[%emt 0:00:06]} Na5 {[%emt 0:01:14]} 21. dxe5 {[%emt 0:06:22]} dxe5 {[%emt 0:02:53]} 22. Qd7 {[%emt 0:01:32]} Rac8 {[%emt 0:13:02]} 23. Qg4 {[%emt 0:07:39]} Bxg3 {[%emt 0:00:27]} 24. Qxg3 {[%emt 0:00:31]} Rcd8 {[%emt 0:02:31]} 25. Rd5 {[%emt 0:01:55]} Rxd5 {[%emt 0:05:28]} 26. exd5 {[%emt 0:00:06]} Re8 {[%emt 0:00:58]} 27. Qe3 {[%emt 0:03:43]} Qd6 {[%emt 0:02:15]} 28. Rd1 {[%emt 0:01:06]} f5 {[%emt 0:05:22]} 29. f3 {[%emt 0:04:28]} e4 {[%emt 0:03:20]} 30. fxe4 {[%emt 0:01:14]} Rxe4 {[%emt 0:00:28]} 31. Qf2 {[%emt 0:01:09]} Nxb3 {[%emt 0:05:22]} 32. axb3 {[%emt 0:00:12]} Qe5 {[%emt 0:00:22]} 33. Qa7 {[%emt 0:02:41]} Re2 {[%emt 0:14:40]} 34. Kh1 {[%emt 0:03:06]} Rxb2 {[%emt 0:07:53]} 35. Qxa6 {[%emt 0:00:46]} Rxg2 {[%emt 0:04:37]} 36. Kxg2 {[%emt 0:02:28]} Qe2+ {[%emt 0:00:11]} 37. Kg3 {[%emt 0:00:07]} Qe3+ {[%emt 0:00:20]} 38. Kg2 {[%emt 0:00:07]} Qe2+ {[%emt 0:00:06]} 39. Kg3 {[%emt 0:00:04]} Qe3+ {[%emt 0:00:11]} 40. Kg2 {[%emt 0:00:00]} Qe2+ {[%emt 0:00:00]} 41. Kg3 1/2-1/2

[Event "IIFL Wealth 4th Mumbai GM"]
[Site "Mumbai"]
[Date "2019.01.05"]
[Round "7"]
[White "Sangma, Rahul"]
[Black "Ankit, R. Rajpara"]
[Result "0-1"]
[ECO "A06"]
[WhiteElo "2289"]
[BlackElo "2465"]
[Annotator "ChessBase"]
[PlyCount "43"]
[EventDate "2018.12.30"]
[EventType "swiss"]
[EventCountry "IND"]
[SourceTitle "playchess.com"]
[Source "ChessBase"]
[SourceQuality "1"]
[TimeControl "40/5400+30:1800+30"]

1. Nf3 {[%emt 0:00:00]} d5 {[%emt 0:00:00]} 2. e3 {[%emt 0:00:00]} Nf6 {[%emt 0:00:45]} 3. c4 {[%emt 0:00:01]} c6 {[%emt 0:00:19]} 4. Nc3 {[%emt 0:00:02]} e6 {[%emt 0:00:16]} 5. b3 {[%emt 0:00:20]} Bd6 {[%emt 0:00:10]} 6. Qc2 {[%emt 0:00:12]} e5 {[%emt 0:00:47]} 7. cxd5 {[%emt 0:01:24]} cxd5 {[%emt 0:00:09]} 8. Nb5 {[%emt 0:00:14]} Nc6 {[%emt 0:10:07]} 9. Nxd6+ {[%emt 0:02:07]} Qxd6 {[%emt 0:00:08]} 10. Bb5 {[%emt 0:03:09]} O-O {[%emt 0:02:47]} 11. Bxc6 {[%emt 0:04:14]} bxc6 {[%emt 0:00:12]} 12. Bb2 {[%emt 0:00:03]} e4 {[%emt 0:17:54]} 13. Nd4 {[%emt 0:03:12]} c5 {[%emt 0:08:20]} 14. Nb5 {[%emt 0:25:19]} Qc6 {[%emt 0:09:09]} 15. Bxf6 {[%emt 0:03:45]} Qxb5 {[%emt 0:03:32]} 16. a4 {[%emt 0:00:01]} Qa6 {[%emt 0:02:00]} 17. Bb2 {[%emt 0:07:40]} Bg4 {[%emt 0:00:27]} 18. d3 {[%emt 0:00:15]} exd3 {[%emt 0:00:44]} 19. Qc3 {[%emt 0:00:59]} d4 {[%emt 0:07:26]} 20. Qc4 {[%emt 0:00:12]} Qg6 {[%emt 0:06:15]} 21. Qxc5 {[%emt 0:16:13]} d2+ {[%emt 0:00:44]} 22. Kxd2 {[%emt 0:00:09]} 0-1